[Event "December 5 Late 2023"]
[Site "https://www.chess.com"]
[Date "2023.12.05"]
[Round "8"]
[White "Rios Escobar, Adan"]
[Black "Silvestre, Christian"]
[Result "0-1"]
[Board "93"]
[TimeControl "180+1"]
[WhiteFideId "3403645"]
[BlackFideId "30956269"]
[WhiteElo "2450"]
[BlackElo "2331"]
[WhiteTeam "CHI"]
[BlackTeam "USA"]
[WhiteClock "0:00:00"]
[BlackClock "0:01:03"]

1. Nf3 {[%clk 0:02:55]}  c5 {[%clk 0:02:59]} 2. c4 {[%clk 0:02:53]}  d6 {[%clk 0:02:59]} 3. Nc3 {[%clk 0:02:51]}  g6 {[%clk 0:02:58]} 4. g3 {[%clk 0:02:46]}  Bg7 {[%clk 0:02:58]} 5. Bg2 {[%clk 0:02:47]}  Nf6 {[%clk 0:02:58]} 6. O-O {[%clk 0:02:47]}  O-O {[%clk 0:02:58]} 7. d4 {[%clk 0:02:43]}  cxd4 {[%clk 0:02:54]} 8. Nxd4 {[%clk 0:02:42]}  Nbd7 {[%clk 0:02:53]} 9. Nc2 {[%clk 0:02:39]}  a6 {[%clk 0:02:52]} 10. b3 {[%clk 0:02:38]}  Rb8 {[%clk 0:02:53]} 11. Bb2 {[%clk 0:02:36]}  b5 {[%clk 0:02:52]} 12. cxb5 {[%clk 0:02:36]}  axb5 {[%clk 0:02:53]} 13. Nb4 {[%clk 0:02:20]}  Bb7 {[%clk 0:02:29]} 14. Nc6 {[%clk 0:02:11]}  Bxc6 {[%clk 0:02:28]} 15. Bxc6 {[%clk 0:02:12]}  b4 {[%clk 0:02:26]} 16. Nd5 {[%clk 0:01:51]}  Nxd5 {[%clk 0:02:24]} 17. Bxg7 {[%clk 0:01:50]}  Kxg7 {[%clk 0:02:05]} 18. Bxd5 {[%clk 0:01:46]}  Qb6 {[%clk 0:02:02]} 19. Rc1 {[%clk 0:01:43]}  Rfc8 {[%clk 0:02:01]} 20. Qd2 {[%clk 0:01:37]}  e6 {[%clk 0:01:57]} 21. Bg2 {[%clk 0:01:27]}  d5 {[%clk 0:01:54]} 22. h4 {[%clk 0:01:13]}  Nf6 {[%clk 0:01:48]} 23. Bf3 {[%clk 0:01:01]}  h6 {[%clk 0:01:41]} 24. g4 {[%clk 0:00:47]}  Qd6 {[%clk 0:01:34]} 25. g5 {[%clk 0:00:42]}  hxg5 {[%clk 0:01:35]} 26. hxg5 {[%clk 0:00:43]}  Nd7 {[%clk 0:01:32]} 27. Qd4+ {[%clk 0:00:39]}  Qe5 {[%clk 0:01:30]} 28. Qg4 {[%clk 0:00:13]}  Rh8 {[%clk 0:01:20]} 29. Rfd1 {[%clk 0:00:12]}  Rh5 {[%clk 0:01:16]} 30. Bg2 {[%clk 0:00:11]}  Rxg5 {[%clk 0:01:14]} 31. Qh3 {[%clk 0:00:09]}  Rh8 {[%clk 0:01:12]} 32. Qf3 {[%clk 0:00:02]}  Qh2+ {[%clk 0:01:05]} 33. Kf1 {[%clk 0:00:00]}  Ne5 {[%clk 0:01:03]} 0-1

[Event "December 5 Late 2023"]
[Site "https://www.chess.com"]
[Date "2023.12.05"]
[Round "8"]
[White "Mizzi, Jack"]
[Black "Kappeler, Kaspar"]
[Result "1-0"]
[Board "94"]
[TimeControl "180+1"]
[WhiteFideId "5602521"]
[BlackFideId "1309072"]
[WhiteElo "2448"]
[BlackElo "2328"]
[WhiteTeam "MLT"]
[BlackTeam "SUI"]
[WhiteClock "0:00:48"]
[BlackClock "0:00:00"]

1. d4 {[%clk 0:03:00]}  Nf6 {[%clk 0:02:59]} 2. c4 {[%clk 0:03:00]}  e6 {[%clk 0:02:59]} 3. g3 {[%clk 0:03:00]}  d5 {[%clk 0:02:59]} 4. Bg2 {[%clk 0:03:01]}  dxc4 {[%clk 0:02:59]} 5. Nf3 {[%clk 0:03:01]}  c5 {[%clk 0:02:58]} 6. O-O {[%clk 0:03:01]}  Nc6 {[%clk 0:02:58]} 7. Qa4 {[%clk 0:03:01]}  Bd7 {[%clk 0:02:57]} 8. Qxc4 {[%clk 0:02:59]}  b5 {[%clk 0:02:56]} 9. Qd3 {[%clk 0:02:49]}  Rc8 {[%clk 0:02:55]} 10. dxc5 {[%clk 0:02:48]}  Bxc5 {[%clk 0:02:52]} 11. a3 {[%clk 0:02:47]}  O-O {[%clk 0:02:48]} 12. b4 {[%clk 0:02:46]}  Be7 {[%clk 0:02:30]} 13. Bb2 {[%clk 0:02:43]}  a5 {[%clk 0:02:22]} 14. Rd1 {[%clk 0:02:32]}  Nd5 {[%clk 0:02:04]} 15. e4 {[%clk 0:02:25]}  Nb6 {[%clk 0:02:03]} 16. bxa5 {[%clk 0:02:19]}  Nxa5 {[%clk 0:02:03]} 17. Ne5 {[%clk 0:02:10]}  Nac4 {[%clk 0:01:53]} 18. Bd4 {[%clk 0:01:47]}  Nxe5 {[%clk 0:01:46]} 19. Bxe5 {[%clk 0:01:46]}  Bc6 {[%clk 0:01:42]} 20. Qe2 {[%clk 0:01:29]}  Qe8 {[%clk 0:01:38]} 21. Nc3 {[%clk 0:01:26]}  f6 {[%clk 0:01:30]} 22. Bd4 {[%clk 0:01:26]}  Nc4 {[%clk 0:01:30]} 23. a4 {[%clk 0:01:25]}  e5 {[%clk 0:01:24]} 24. axb5 {[%clk 0:01:24]}  exd4 {[%clk 0:01:21]} 25. Qxc4+ {[%clk 0:01:21]}  Qf7 {[%clk 0:01:12]} 26. Rxd4 {[%clk 0:01:20]}  Be8 {[%clk 0:00:36]} 27. Qxf7+ {[%clk 0:01:16]}  Rxf7 {[%clk 0:00:36]} 28. Nd5 {[%clk 0:01:15]}  Bc5 {[%clk 0:00:33]} 29. Rd2 {[%clk 0:01:03]}  Bxb5 {[%clk 0:00:32]} 30. Rc2 {[%clk 0:01:03]}  Bd3 {[%clk 0:00:30]} 31. Rc3 {[%clk 0:00:53]}  Bb5 {[%clk 0:00:04]} 32. Rac1 {[%clk 0:00:51]}  Ra7 {[%clk 0:00:00]} 33. h4 {[%clk 0:00:48]} 1-0

[Event "December 5 Late 2023"]
[Site "https://www.chess.com"]
[Date "2023.12.05"]
[Round "8"]
[White "Skibbe, Willi"]
[Black "Bogaudinov, Rushan"]
[Result "0-1"]
[Board "95"]
[TimeControl "180+1"]
[WhiteFideId "4682190"]
[BlackFideId "4129288"]
[WhiteElo "2317"]
[BlackElo "2437"]
[WhiteTeam "GER"]
[BlackTeam "RUS"]
[WhiteClock "0:02:16"]
[BlackClock "0:02:29"]

1. e4 {[%clk 0:02:52]}  a6 {[%clk 0:02:42]} 2. a3 {[%clk 0:02:49]}  e6 {[%clk 0:02:43]} 3. b3 {[%clk 0:02:49]}  c5 {[%clk 0:02:42]} 4. Bb2 {[%clk 0:02:49]}  Nc6 {[%clk 0:02:42]} 5. Ne2 {[%clk 0:02:49]}  d5 {[%clk 0:02:42]} 6. g3 {[%clk 0:02:50]}  dxe4 {[%clk 0:02:42]} 7. Bg2 {[%clk 0:02:50]}  f5 {[%clk 0:02:42]} 8. Nbc3 {[%clk 0:02:50]}  Nf6 {[%clk 0:02:41]} 9. O-O {[%clk 0:02:50]}  Be7 {[%clk 0:02:35]} 10. Nf4 {[%clk 0:02:36]}  O-O {[%clk 0:02:33]} 11. Qe2 {[%clk 0:02:25]}  Nd4 {[%clk 0:02:29]} 12. Qc4 {[%clk 0:02:16]}  b5 {[%clk 0:02:29]} 0-1

[Event "December 5 Late 2023"]
[Site "https://www.chess.com"]
[Date "2023.12.05"]
[Round "8"]
[White "Uryupin, Igor"]
[Black "Chlpik, Martin"]
[Result "1-0"]
[Board "96"]
[TimeControl "180+1"]
[WhiteFideId "4182529"]
[BlackFideId "14923351"]
[WhiteElo "2417"]
[BlackElo "2272"]
[WhiteTeam "RUS"]
[BlackTeam "SVK"]
[WhiteClock "0:00:58"]
[BlackClock "0:00:10"]

1. d4 {[%clk 0:03:00]}  Nf6 {[%clk 0:02:59]} 2. Nf3 {[%clk 0:03:00]}  c5 {[%clk 0:02:59]} 3. e3 {[%clk 0:03:00]}  d5 {[%clk 0:02:55]} 4. c3 {[%clk 0:02:59]}  e6 {[%clk 0:02:53]} 5. Bd3 {[%clk 0:02:59]}  Nc6 {[%clk 0:02:50]} 6. Nbd2 {[%clk 0:02:59]}  Be7 {[%clk 0:02:47]} 7. O-O {[%clk 0:02:59]}  O-O {[%clk 0:02:46]} 8. a3 {[%clk 0:02:59]}  b6 {[%clk 0:02:46]} 9. dxc5 {[%clk 0:02:58]}  bxc5 {[%clk 0:02:45]} 10. b4 {[%clk 0:02:58]}  c4 {[%clk 0:02:36]} 11. Bb1 {[%clk 0:02:53]}  e5 {[%clk 0:02:22]} 12. e4 {[%clk 0:02:49]}  d4 {[%clk 0:02:20]} 13. Nxc4 {[%clk 0:02:43]}  dxc3 {[%clk 0:02:17]} 14. Ncxe5 {[%clk 0:02:42]}  Nxe5 {[%clk 0:02:10]} 15. Nxe5 {[%clk 0:02:42]}  Qc7 {[%clk 0:02:01]} 16. Nf3 {[%clk 0:02:37]}  Ba6 {[%clk 0:01:57]} 17. Re1 {[%clk 0:02:36]}  Rfd8 {[%clk 0:01:54]} 18. Qa4 {[%clk 0:02:32]}  Bc4 {[%clk 0:01:32]} 19. Bg5 {[%clk 0:02:20]}  Rac8 {[%clk 0:01:23]} 20. Bc2 {[%clk 0:02:19]}  a6 {[%clk 0:01:22]} 21. e5 {[%clk 0:02:09]}  Nd5 {[%clk 0:01:14]} 22. Bxe7 {[%clk 0:02:07]}  Qxe7 {[%clk 0:01:05]} 23. Qa5 {[%clk 0:02:04]}  Nf4 {[%clk 0:01:03]} 24. Rad1 {[%clk 0:01:55]}  Rd5 {[%clk 0:00:49]} 25. Rxd5 {[%clk 0:01:44]}  Bxd5 {[%clk 0:00:50]} 26. Qxa6 {[%clk 0:01:34]}  Ra8 {[%clk 0:00:41]} 27. Qd6 {[%clk 0:01:28]}  Qb7 {[%clk 0:00:40]} 28. Ng5 {[%clk 0:01:19]}  Bxg2 {[%clk 0:00:24]} 29. e6 {[%clk 0:01:09]}  fxe6 {[%clk 0:00:23]} 30. Bxh7+ {[%clk 0:01:02]}  Kh8 {[%clk 0:00:22]} 31. Qxf4 {[%clk 0:01:01]}  c2 {[%clk 0:00:10]} 32. Bxc2 {[%clk 0:00:58]} 1-0

[Event "December 5 Late 2023"]
[Site "https://www.chess.com"]
[Date "2023.12.05"]
[Round "8"]
[White "Skaric, Djuro"]
[Black "Teumer, Joerg, Dr."]
[Result "0-1"]
[Board "97"]
[TimeControl "180+1"]
[WhiteFideId "934569"]
[BlackFideId "4643526"]
[WhiteElo "2411"]
[BlackElo "2138"]
[WhiteTeam "SRB"]
[BlackTeam "GER"]
[WhiteClock "0:00:14"]
[BlackClock "0:00:09"]

1. g3 {[%clk 0:03:00]}  d5 {[%clk 0:02:51]} 2. Bg2 {[%clk 0:03:00]}  c6 {[%clk 0:02:51]} 3. d3 {[%clk 0:03:01]}  e5 {[%clk 0:02:48]} 4. Nf3 {[%clk 0:03:01]}  Bd6 {[%clk 0:02:48]} 5. O-O {[%clk 0:03:01]}  Nf6 {[%clk 0:02:44]} 6. Nc3 {[%clk 0:03:02]}  O-O {[%clk 0:02:43]} 7. e4 {[%clk 0:03:01]}  Bg4 {[%clk 0:02:40]} 8. h3 {[%clk 0:03:01]}  Bh5 {[%clk 0:02:33]} 9. g4 {[%clk 0:03:00]}  Bg6 {[%clk 0:02:33]} 10. Nd2 {[%clk 0:03:00]}  Bc7 {[%clk 0:02:13]} 11. Nb3 {[%clk 0:02:57]}  dxe4 {[%clk 0:02:09]} 12. dxe4 {[%clk 0:02:56]}  Qxd1 {[%clk 0:02:08]} 13. Rxd1 {[%clk 0:02:56]}  Na6 {[%clk 0:02:05]} 14. a3 {[%clk 0:02:56]}  Rad8 {[%clk 0:02:04]} 15. Be3 {[%clk 0:02:55]}  Bb6 {[%clk 0:02:00]} 16. Bxb6 {[%clk 0:02:54]}  axb6 {[%clk 0:02:01]} 17. f3 {[%clk 0:02:55]}  Rfe8 {[%clk 0:01:51]} 18. h4 {[%clk 0:02:52]}  h5 {[%clk 0:01:48]} 19. g5 {[%clk 0:02:52]}  Nd7 {[%clk 0:01:47]} 20. Kf2 {[%clk 0:02:51]}  Ndc5 {[%clk 0:01:47]} 21. Nxc5 {[%clk 0:02:50]}  Nxc5 {[%clk 0:01:46]} 22. Ke3 {[%clk 0:02:51]}  Kf8 {[%clk 0:01:46]} 23. Bh3 {[%clk 0:02:49]}  Ke7 {[%clk 0:01:43]} 24. Rxd8 {[%clk 0:02:47]}  Rxd8 {[%clk 0:01:43]} 25. Rd1 {[%clk 0:02:47]}  Rxd1 {[%clk 0:01:41]} 26. Nxd1 {[%clk 0:02:47]}  Kd8 {[%clk 0:01:36]} 27. Nf2 {[%clk 0:02:47]}  f6 {[%clk 0:01:36]} 28. Nd3 {[%clk 0:02:46]}  Nxd3 {[%clk 0:01:32]} 29. cxd3 {[%clk 0:02:46]}  Bf7 {[%clk 0:01:30]} 30. f4 {[%clk 0:02:45]}  Kc7 {[%clk 0:01:24]} 31. f5 {[%clk 0:02:45]}  Bb3 {[%clk 0:00:54]} 32. d4 {[%clk 0:02:38]}  exd4+ {[%clk 0:00:51]} 33. Kxd4 {[%clk 0:02:38]}  Kd6 {[%clk 0:00:52]} 34. e5+ {[%clk 0:01:36]}  fxe5+ {[%clk 0:00:50]} 35. Ke3 {[%clk 0:01:37]}  Bd1 {[%clk 0:00:36]} 36. Bg2 {[%clk 0:01:27]}  b5 {[%clk 0:00:28]} 37. Be4 {[%clk 0:01:24]}  b6 {[%clk 0:00:24]} 38. Bg2 {[%clk 0:00:49]}  c5 {[%clk 0:00:22]} 39. Bf1 {[%clk 0:00:48]}  b4 {[%clk 0:00:21]} 40. axb4 {[%clk 0:00:47]}  cxb4 {[%clk 0:00:21]} 41. Bc4 {[%clk 0:00:46]}  Bc2 {[%clk 0:00:18]} 42. Be6 {[%clk 0:00:42]}  g6 {[%clk 0:00:15]} 43. fxg6 {[%clk 0:00:22]}  Kxe6 {[%clk 0:00:14]} 44. g7 {[%clk 0:00:21]}  Kf7 {[%clk 0:00:12]} 45. Kd2 {[%clk 0:00:19]}  b3 {[%clk 0:00:11]} 46. Kc3 {[%clk 0:00:19]}  Kxg7 {[%clk 0:00:11]} 47. Kc4 {[%clk 0:00:19]}  Kg6 {[%clk 0:00:11]} 48. Kd5 {[%clk 0:00:19]}  Kf5 {[%clk 0:00:11]} 49. Kc4 {[%clk 0:00:18]}  Bd1 {[%clk 0:00:09]} 50. Kd5 {[%clk 0:00:16]}  Bc2 {[%clk 0:00:09]} 51. g6 {[%clk 0:00:15]}  Kxg6 {[%clk 0:00:09]} 52. Kxe5 {[%clk 0:00:16]}  Bd1 {[%clk 0:00:09]} 53. Ke4 {[%clk 0:00:15]}  Bc2+ {[%clk 0:00:09]} 54. Ke5 {[%clk 0:00:15]}  b5 {[%clk 0:00:08]} 55. Ke6 {[%clk 0:00:14]}  Bd3 {[%clk 0:00:08]} 56. Ke5 {[%clk 0:00:15]}  Bc4 {[%clk 0:00:08]} 57. Ke4 {[%clk 0:00:13]}  Kf6 {[%clk 0:00:08]} 58. Kf4 {[%clk 0:00:14]}  Bd5 {[%clk 0:00:08]} 59. Ke3 {[%clk 0:00:13]}  Kf5 {[%clk 0:00:08]} 60. Kd4 {[%clk 0:00:14]}  Bc4 {[%clk 0:00:09]} 61. Ke3 {[%clk 0:00:14]}  Kg4 {[%clk 0:00:09]} 0-1

[Event "December 5 Late 2023"]
[Site "https://www.chess.com"]
[Date "2023.12.05"]
[Round "8"]
[White "Mangialardo, Tiago Carvalho"]
[Black "Hoffmann, Asa"]
[Result "0-1"]
[Board "99"]
[TimeControl "180+1"]
[WhiteFideId "2130718"]
[BlackFideId "2001470"]
[WhiteElo "2119"]
[BlackElo "2407"]
[WhiteTeam "BRA"]
[BlackTeam "USA"]
[WhiteClock "0:00:00"]
[BlackClock "0:01:00"]

1. e4 {[%clk 0:03:00]}  d6 {[%clk 0:02:56]} 2. d4 {[%clk 0:02:59]}  Nf6 {[%clk 0:02:55]} 3. Nd2 {[%clk 0:02:58]}  c6 {[%clk 0:02:55]} 4. f4 {[%clk 0:02:58]}  g6 {[%clk 0:02:52]} 5. Ngf3 {[%clk 0:02:57]}  Bg7 {[%clk 0:02:52]} 6. e5 {[%clk 0:02:56]}  Nd5 {[%clk 0:02:51]} 7. Nb3 {[%clk 0:02:56]}  a5 {[%clk 0:02:50]} 8. a4 {[%clk 0:02:56]}  O-O {[%clk 0:02:47]} 9. c3 {[%clk 0:02:31]}  Qb6 {[%clk 0:02:43]} 10. Bd3 {[%clk 0:02:20]}  Bg4 {[%clk 0:02:42]} 11. Nbd2 {[%clk 0:01:57]}  Nd7 {[%clk 0:02:37]} 12. Nc4 {[%clk 0:01:49]}  Qc7 {[%clk 0:02:36]} 13. O-O {[%clk 0:01:45]}  b5 {[%clk 0:02:30]} 14. Ne3 {[%clk 0:01:32]}  Nxe3 {[%clk 0:02:17]} 15. Bxe3 {[%clk 0:01:32]}  b4 {[%clk 0:02:17]} 16. Qe1 {[%clk 0:01:05]}  Bxf3 {[%clk 0:02:14]} 17. Rxf3 {[%clk 0:01:05]}  Rab8 {[%clk 0:02:13]} 18. Qh4 {[%clk 0:00:59]}  Nb6 {[%clk 0:02:06]} 19. Rh3 {[%clk 0:00:45]}  h5 {[%clk 0:01:30]} 20. f5 {[%clk 0:00:34]}  Nd5 {[%clk 0:01:26]} 21. fxg6 {[%clk 0:00:34]}  fxg6 {[%clk 0:01:26]} 22. Bxg6 {[%clk 0:00:33]}  Nxe3 {[%clk 0:01:14]} 23. Qxh5 {[%clk 0:00:26]}  Rf4 {[%clk 0:01:09]} 24. Rxe3 {[%clk 0:00:08]}  dxe5 {[%clk 0:01:07]} 25. dxe5 {[%clk 0:00:08]}  Qb6 {[%clk 0:01:04]} 26. Re1 {[%clk 0:00:04]}  Rd8 {[%clk 0:01:02]} 27. Kh1 {[%clk 0:00:03]}  Qxe3 {[%clk 0:01:00]} 28. Bh7+ {[%clk 0:00:00]}  Kf8 {[%clk 0:01:00]} 0-1

[Event "December 5 Late 2023"]
[Site "https://www.chess.com"]
[Date "2023.12.05"]
[Round "8"]
[White "JERO-8914"]
[Black "Monteiro, Luis Felipe Furtado"]
[Result "0-1"]
[Board "100"]
[TimeControl "180+1"]
[BlackFideId "22702806"]
[WhiteElo "2405"]
[BlackElo "2074"]
[BlackTeam "BRA"]
[WhiteClock "0:00:12"]
[BlackClock "0:00:23"]

1. e4 {[%clk 0:03:00]}  e5 {[%clk 0:02:46]} 2. Nf3 {[%clk 0:03:00]}  Nc6 {[%clk 0:02:44]} 3. Bb5 {[%clk 0:03:00]}  a6 {[%clk 0:02:40]} 4. Ba4 {[%clk 0:03:00]}  Nf6 {[%clk 0:02:40]} 5. d3 {[%clk 0:02:58]}  d6 {[%clk 0:02:37]} 6. O-O {[%clk 0:02:54]}  Bd7 {[%clk 0:02:33]} 7. c3 {[%clk 0:02:54]}  g6 {[%clk 0:02:32]} 8. Re1 {[%clk 0:02:47]}  Bg7 {[%clk 0:02:32]} 9. d4 {[%clk 0:02:43]}  O-O {[%clk 0:02:29]} 10. Bg5 {[%clk 0:02:39]}  exd4 {[%clk 0:02:26]} 11. cxd4 {[%clk 0:02:39]}  h6 {[%clk 0:02:27]} 12. Bh4 {[%clk 0:02:37]}  Re8 {[%clk 0:02:25]} 13. Nc3 {[%clk 0:02:34]}  g5 {[%clk 0:02:18]} 14. Bg3 {[%clk 0:02:34]}  b5 {[%clk 0:02:09]} 15. Bc2 {[%clk 0:02:27]}  Bg4 {[%clk 0:02:06]} 16. e5 {[%clk 0:01:58]}  dxe5 {[%clk 0:02:04]} 17. dxe5 {[%clk 0:01:58]}  Qxd1 {[%clk 0:01:59]} 18. Bxd1 {[%clk 0:01:59]}  Nd7 {[%clk 0:01:57]} 19. Nd5 {[%clk 0:01:48]}  Rac8 {[%clk 0:01:54]} 20. Rc1 {[%clk 0:01:33]}  Ncxe5 {[%clk 0:01:53]} 21. Nxe5 {[%clk 0:01:32]}  Nxe5 {[%clk 0:01:52]} 22. Bxg4 {[%clk 0:01:30]}  Nxg4 {[%clk 0:01:52]} 23. Rxe8+ {[%clk 0:01:28]}  Rxe8 {[%clk 0:01:52]} 24. Nxc7 {[%clk 0:01:28]}  Rc8 {[%clk 0:01:51]} 25. h3 {[%clk 0:01:19]}  Ne5 {[%clk 0:01:48]} 26. Rc5 {[%clk 0:01:05]}  Nd7 {[%clk 0:01:31]} 27. Rc6 {[%clk 0:01:03]}  Be5 {[%clk 0:01:26]} 28. Bxe5 {[%clk 0:00:50]}  Nxe5 {[%clk 0:01:27]} 29. Rc5 {[%clk 0:00:51]}  Nd3 {[%clk 0:01:24]} 30. Rd5 {[%clk 0:00:47]}  Nf4 {[%clk 0:01:10]} 31. Rd7 {[%clk 0:00:41]}  Kf8 {[%clk 0:00:55]} 32. Nxa6 {[%clk 0:00:41]}  Rc2 {[%clk 0:00:55]} 33. Rd8+ {[%clk 0:00:28]}  Kg7 {[%clk 0:00:53]} 34. Nc7 {[%clk 0:00:20]}  Rxc7 {[%clk 0:00:52]} 35. Rb8 {[%clk 0:00:20]}  Rc1+ {[%clk 0:00:49]} 36. Kh2 {[%clk 0:00:19]}  Rc5 {[%clk 0:00:49]} 37. b3 {[%clk 0:00:19]}  Nd3 {[%clk 0:00:48]} 38. Rd8 {[%clk 0:00:18]}  Nxf2 {[%clk 0:00:48]} 39. Kg3 {[%clk 0:00:18]}  Ne4+ {[%clk 0:00:48]} 40. Kf3 {[%clk 0:00:18]}  Nc3 {[%clk 0:00:44]} 41. a4 {[%clk 0:00:18]}  bxa4 {[%clk 0:00:44]} 42. bxa4 {[%clk 0:00:19]}  Nxa4 {[%clk 0:00:44]} 43. Kg3 {[%clk 0:00:19]}  Nc3 {[%clk 0:00:44]} 44. Kh2 {[%clk 0:00:20]}  Ne4 {[%clk 0:00:45]} 45. Re8 {[%clk 0:00:20]}  f5 {[%clk 0:00:41]} 46. Re7+ {[%clk 0:00:19]}  Kf6 {[%clk 0:00:41]} 47. Re8 {[%clk 0:00:20]}  Rc6 {[%clk 0:00:41]} 48. Rh8 {[%clk 0:00:20]}  Kg7 {[%clk 0:00:41]} 49. Re8 {[%clk 0:00:20]}  Kf7 {[%clk 0:00:37]} 50. Rh8 {[%clk 0:00:19]}  f4 {[%clk 0:00:35]} 51. Rh7+ {[%clk 0:00:18]}  Kg6 {[%clk 0:00:35]} 52. Re7 {[%clk 0:00:19]}  Ng3 {[%clk 0:00:34]} 53. Re1 {[%clk 0:00:18]}  Rc2 {[%clk 0:00:33]} 54. h4 {[%clk 0:00:17]}  g4 {[%clk 0:00:29]} 55. Re6+ {[%clk 0:00:15]}  Kh5 {[%clk 0:00:28]} 56. Re5+ {[%clk 0:00:15]}  Kxh4 {[%clk 0:00:29]} 57. Re6 {[%clk 0:00:12]}  h5 {[%clk 0:00:28]} 58. Re5 {[%clk 0:00:12]}  f3 {[%clk 0:00:28]} 59. Rxh5+ {[%clk 0:00:10]}  Nxh5 {[%clk 0:00:24]} 60. Kg1 {[%clk 0:00:11]}  Rxg2+ {[%clk 0:00:23]} 61. Kh1 {[%clk 0:00:12]}  Ng3# {[%clk 0:00:23]} 0-1

[Event "December 5 Late 2023"]
[Site "https://www.chess.com"]
[Date "2023.12.05"]
[Round "8"]
[White "Martins, Bruno Andre Leite"]
[Black "Kornyukov, Alexey"]
[Result "0-1"]
[Board "102"]
[TimeControl "180+1"]
[WhiteFideId "1942255"]
[BlackFideId "4150457"]
[WhiteElo "2506"]
[BlackElo "2326"]
[WhiteTeam "POR"]
[BlackTeam "RUS"]
[WhiteClock "0:00:00"]
[BlackClock "0:00:07"]

1. d4 {[%clk 0:02:57]}  Nf6 {[%clk 0:02:55]} 2. c4 {[%clk 0:02:57]}  e6 {[%clk 0:02:54]} 3. Nf3 {[%clk 0:02:25]}  d5 {[%clk 0:02:52]} 4. Nc3 {[%clk 0:02:23]}  a6 {[%clk 0:02:50]} 5. cxd5 {[%clk 0:02:23]}  exd5 {[%clk 0:02:49]} 6. Bg5 {[%clk 0:02:23]}  c6 {[%clk 0:02:47]} 7. e3 {[%clk 0:02:23]}  Be6 {[%clk 0:02:41]} 8. Bd3 {[%clk 0:02:22]}  Nbd7 {[%clk 0:02:40]} 9. O-O {[%clk 0:02:20]}  Bd6 {[%clk 0:02:40]} 10. Bh4 {[%clk 0:02:18]}  O-O {[%clk 0:02:39]} 11. Ng5 {[%clk 0:02:15]}  Qe8 {[%clk 0:02:05]} 12. Qc2 {[%clk 0:02:00]}  h6 {[%clk 0:02:02]} 13. Nxe6 {[%clk 0:02:00]}  Qxe6 {[%clk 0:01:57]} 14. Rae1 {[%clk 0:01:59]}  Rae8 {[%clk 0:01:29]} 15. Bf5 {[%clk 0:01:55]}  Qe7 {[%clk 0:01:23]} 16. e4 {[%clk 0:01:55]}  g5 {[%clk 0:00:47]} 17. Bg3 {[%clk 0:01:41]}  Bxg3 {[%clk 0:00:43]} 18. fxg3 {[%clk 0:01:29]}  Nxe4 {[%clk 0:00:29]} 19. Nxe4 {[%clk 0:01:25]}  dxe4 {[%clk 0:00:30]} 20. Rxe4 {[%clk 0:01:24]}  Qd6 {[%clk 0:00:29]} 21. Bh7+ {[%clk 0:01:16]}  Kg7 {[%clk 0:00:26]} 22. Bf5 {[%clk 0:01:10]}  Nf6 {[%clk 0:00:24]} 23. Rxe8 {[%clk 0:01:05]}  Qxd4+ {[%clk 0:00:23]} 24. Kh1 {[%clk 0:00:59]}  Rxe8 {[%clk 0:00:23]} 25. a3 {[%clk 0:00:58]}  Re3 {[%clk 0:00:22]} 26. Qf2 {[%clk 0:00:55]}  Qe5 {[%clk 0:00:20]} 27. b4 {[%clk 0:00:25]}  Re2 {[%clk 0:00:17]} 28. Qf3 {[%clk 0:00:24]}  Re1 {[%clk 0:00:17]} 29. Bd3 {[%clk 0:00:16]}  Rxf1+ {[%clk 0:00:17]} 30. Bxf1 {[%clk 0:00:17]}  Nd5 {[%clk 0:00:14]} 31. h4 {[%clk 0:00:15]}  Ne3 {[%clk 0:00:13]} 32. Bd3 {[%clk 0:00:12]}  gxh4 {[%clk 0:00:11]} 33. gxh4 {[%clk 0:00:12]}  Qa1+ {[%clk 0:00:10]} 34. Kh2 {[%clk 0:00:11]}  Qe5+ {[%clk 0:00:10]} 35. g3 {[%clk 0:00:09]}  h5 {[%clk 0:00:10]} 36. a4 {[%clk 0:00:05]}  Ng4+ {[%clk 0:00:09]} 37. Kg2 {[%clk 0:00:05]}  Qd4 {[%clk 0:00:09]} 38. b5 {[%clk 0:00:03]}  Ne3+ {[%clk 0:00:09]} 39. Kf2 {[%clk 0:00:01]}  Nd5+ {[%clk 0:00:07]} 40. Ke2 {[%clk 0:00:01]}  axb5 {[%clk 0:00:07]} 41. axb5 {[%clk 0:00:00]}  cxb5 {[%clk 0:00:07]} 0-1